bitfinex/quotes_SOLUSD_20220116
["timestamp","ask_amount","ask_price","bid_price","bid_amount"]
[1642301979998,0.25,146.54,146.45,36.71373025]
[1642301980198,6.25,146.54,146.45,36.71373025]
[1642301980799,0.25,146.54,146.45,36.71373025]
[1642301981003,6.0,146.54,146.45,42.24573025]
[1642301981203,49.01270535,146.53,146.45,42.24573025]
[1642301981401,49.26270535,146.53,146.45,42.24573025]
[1642301982099,6.0,146.54,146.45,104.61373025]
[1642301982298,30.4093,146.57,146.45,36.71373025]
[1642301982700,30.6593,146.57,146.45,36.71373025]
[1642301983102,44.39145271,146.56,146.45,36.71373025]
[1642301983405,50.64145271,146.56,146.45,36.71373025]
[1642301983602,50.39145271,146.56,146.45,104.96373025]
[1642301985003,50.39145271,146.56,146.46,0.26]
[1642301985203,50.39145271,146.56,146.45,110.96373025]
[1642301985906,50.64145271,146.56,146.45,42.71373025]
[1642301986503,23.0323,146.55,146.45,42.71373025]
[1642301986905,29.2823,146.55,146.45,42.71373025]
[1642301989908,29.2823,146.55,146.46,0.26]
[1642301991107,29.0323,146.55,146.46,0.26]
[1642301991311,29.0323,146.55,146.46,68.51]
[1642301991710,29.0323,146.55,146.46,6.25]
[1642301992109,23.0323,146.55,146.46,6.25]
[1642301992309,23.0323,146.55,146.46,0.25]
[1642301992611,23.0323,146.55,146.46,6.25]
[1642301992810,23.0323,146.55,146.47,0.26]
[1642301996615,59.37264411,146.55,146.46,6.25]
[1642301996813,59.37264411,146.55,146.46,16.09]
[1642301997012,59.62264411,146.55,146.46,16.09]
[1642301998215,1.93800651,146.54,146.46,9.84]
[1642301998414,2.18800651,146.54,146.42,1.82423158]
[1642301998715,33.9058,146.53,146.42,1.82423158]
[1642301998917,50.46157588,146.53,146.42,1.82423158]
[1642301999117,48.82215589,146.52,146.43,33.66789389]
[1642301999315,18.02800651,146.52,146.43,33.66789389]
[1642301999515,17.77800651,146.52,146.43,33.91789389]
[1642301999915,11.77800651,146.52,146.43,33.91789389]
[1642302000116,1.93800651,146.52,146.43,33.91789389]
[1642302000315,24.0658,146.53,146.44,68.51]
[1642302000818,24.0658,146.53,146.44,68.76]
[1642302001217,24.0658,146.53,146.43,33.66789389]
[1642302001619,33.9058,146.53,146.43,33.66789389]
[1642302001819,40.1558,146.53,146.43,33.66789389]
[1642302002618,42.09380651,146.53,146.43,33.66789389]
[1642302003819,1.93800651,146.52,146.39,1.82423158]
[1642302004019,14.07800651,146.52,146.39,1.82423158]
[1642302004222,34.3591,146.51,146.39,1.82423158]
[1642302004421,40.6091,146.51,146.39,1.82423158]
[1642302004621,1.70077588,146.5,146.39,1.82423158]
[1642302004820,37.45803165,146.48,146.39,1.82423158]
[1642302005022,66.69043165,146.48,146.37,1.82423158]
[1642302005249,72.94043165,146.48,146.37,1.82423158]
[1642302005420,9.84,146.47,146.37,1.82423158]
[1642302005820,16.09,146.47,146.37,1.82423158]
[1642302006220,16.09,146.47,146.36,27.01555489]
[1642302006421,47.31688348,146.45,146.36,27.01555489]
[1642302006824,53.56688348,146.45,146.36,27.01555489]
[1642302007022,53.56688348,146.45,146.35,1.82423158]
[1642302007224,53.56688348,146.45,146.35,2.07423158]
[1642302007423,53.56688348,146.45,146.35,0.25]
[1642302007924,53.56688348,146.45,146.33,11.91423158]
[1642302008225,53.31688348,146.45,146.34,36.24661178]
[1642302008424,53.31688348,146.45,146.34,36.49661178]
[1642302008725,47.31688348,146.45,146.35,0.26]
[1642302009327,19.32351447,146.4,146.35,0.26]
[1642302009525,19.32351447,146.38,146.35,0.26]
[1642302009824,19.32351447,146.38,146.36,3.03219997]
[1642302010225,19.32351447,146.38,146.36,3.28219997]
[1642302010427,3.03059901,146.37,146.36,3.28219997]
[1642302010626,3.03059901,146.37,146.36,0.25]
[1642302011027,19.32351447,146.38,146.36,3.28219997]
[1642302011832,19.32351447,146.38,146.36,3.03219997]
[1642302012430,19.32351447,146.38,146.32,1.82423158]
[1642302012629,19.32351447,146.38,146.31,1.82423158]
[1642302012832,25.32351447,146.38,146.31,1.82423158]
[1642302013032,25.32351447,146.38,146.31,7.82423158]
[1642302013233,25.32351447,146.38,146.32,32.80114432]
[1642302014734,19.32351447,146.35,146.32,32.80114432]
[1642302014934,19.32351447,146.35,146.33,3.03219997]
[1642302015134,19.32351447,146.34,146.33,3.03219997]
[1642302015333,22.35411348,146.34,146.32,32.80114432]
[1642302015733,19.32351447,146.34,146.32,32.80114432]
[1642302016235,19.32351447,146.34,146.32,35.83334429]
[1642302016636,18.47835405,146.34,146.32,36.08334429]
[1642302017137,15.63190135,146.34,146.32,36.08334429]
[1642302017338,10.45233894,146.34,146.32,3.28219997]
[1642302017538,10.45233894,146.34,146.33,25.13614618]
[1642302017939,7.17942316,146.34,146.33,25.38614618]
[1642302018137,24.3146,146.42,146.33,0.51]
[1642302018337,24.3146,146.42,146.34,3.29219997]
[1642302018537,24.3146,146.42,146.34,9.78819997]
[1642302018838,24.3146,146.42,146.34,10.03819997]
[1642302019038,24.3146,146.42,146.35,20.17234794]
[1642302019539,24.3146,146.42,146.36,0.26]
[1642302020261,24.3146,146.42,146.36,68.51]
[1642302020463,24.3146,146.42,146.36,68.76]
[1642302021061,24.3146,146.42,146.36,0.25]
[1642302021562,24.3146,146.42,146.35,26.17234794]
[1642302021763,24.5646,146.42,146.35,26.17234794]
[1642302022364,24.3146,146.42,146.35,20.17234794]
[1642302022762,24.3146,146.42,146.35,20.42234794]
[1642302024468,65.43452381,146.42,146.35,20.42234794]
[1642302024970,24.3146,146.42,146.35,20.42234794]
[1642302028774,45.66983591,146.41,146.35,20.42234794]
[1642302029575,24.3146,146.42,146.35,20.42234794]
[1642302030177,36.25010651,146.48,146.36,0.26]
[1642302030377,23.612,146.47,146.36,0.26]
[1642302030577,44.94868371,146.46,146.36,0.26]
[1642302030777,24.9292,146.45,146.36,0.26]
[1642302031378,30.9292,146.45,146.36,68.51]
[1642302031884,24.9292,146.45,146.36,68.76]
[1642302032284,24.9292,146.45,146.36,10.09]
[1642302032479,30.9292,146.45,146.36,10.09]
[1642302032880,31.1792,146.45,146.36,10.09]
[1642302033180,31.1792,146.45,146.36,9.84]
[1642302035684,25.1792,146.45,146.34,1.92313834]
[1642302035881,25.1792,146.45,146.34,2.17313834]
[1642302036082,27.11720651,146.45,146.34,0.34890676]
[1642302036483,36.95720651,146.45,146.34,0.34890676]
[1642302036684,36.95720651,146.45,146.34,20.0099083]
[1642302036886,42.95720651,146.45,146.34,20.0099083]
[1642302039018,1.93800651,146.44,146.34,20.0099083]
[1642302039188,50.24173107,146.43,146.34,20.0099083]
[1642302039587,56.24173107,146.43,146.34,20.0099083]
[1642302040386,56.49173107,146.43,146.34,20.0099083]
[1642302041286,56.24173107,146.43,146.34,20.0099083]
[1642302041888,56.24173107,146.43,146.34,21.83413988]
[1642302042291,56.24173107,146.43,146.42,0.09890676]
[1642302042487,59.27233008,146.43,146.42,0.09890676]
[1642302042688,59.52233008,146.43,146.42,0.09890676]
[1642302043090,9.03059901,146.43,146.42,0.09890676]
[1642302043289,3.03059901,146.43,146.42,0.09890676]
[1642302043490,9.03059901,146.43,146.42,0.09890676]
[1642302044091,57.78668032,146.43,146.42,0.09890676]
[1642302044391,3.03059901,146.43,146.42,0.09890676]
[1642302044591,9.03059901,146.43,146.42,0.09890676]
[1642302044799,3.03059901,146.43,146.42,0.09890676]
[1642302048827,24.9292,146.45,146.42,0.09890676]
[1642302049226,31.1792,146.45,146.42,0.09890676]
[1642302049827,38.25986964,146.44,146.42,0.09890676]
[1642302050326,26.74729901,146.43,146.42,0.09890676]
[1642302050728,32.74729901,146.43,146.42,0.09890676]
[1642302051129,26.74729901,146.43,146.42,0.09890676]
[1642302051330,32.74729901,146.43,146.42,0.09890676]
[1642302051834,26.74729901,146.43,146.42,0.09890676]
[1642302053831,3.03059901,146.43,146.42,0.09890676]
[1642302055835,26.49860651,146.47,146.42,3.13110673]
[1642302056035,1.93800651,146.47,146.42,3.13110673]
[1642302056235,6.0,146.47,146.42,3.38110673]
[1642302056435,39.50349461,146.47,146.42,3.38110673]
[1642302056736,45.50349461,146.47,146.42,3.13110673]
[1642302057437,45.75349461,146.47,146.42,0.09890676]
[1642302058441,23.7616,146.46,146.42,0.09890676]
[1642302058840,30.0116,146.46,146.42,0.09890676]
[1642302066082,29.7616,146.46,146.42,0.09890676]
[1642302066283,23.7616,146.46,146.42,0.09890676]
[1642302066483,29.7616,146.46,146.42,0.09890676]
[1642302066782,30.0116,146.46,146.42,0.09890676]
[1642302068184,24.0116,146.46,146.42,0.09890676]
[1642302068584,30.0116,146.46,146.42,0.09890676]
[1642302070188,29.7616,146.46,146.42,0.09890676]
[1642302070389,23.7616,146.46,146.42,0.09890676]
[1642302070791,1.93800651,146.48,146.42,0.09890676]
[1642302071388,1.93800651,146.49,146.42,0.09890676]
[1642302071788,1.93800651,146.49,146.43,22.70390684]
[1642302072088,39.15275633,146.49,146.43,22.70390684]
[1642302072289,1.93800651,146.49,146.43,22.95390684]
[1642302072687,23.547,146.51,146.43,22.95390684]
[1642302072889,29.547,146.51,146.43,22.95390684]
[1642302073092,23.797,146.51,146.43,22.95390684]
[1642302073491,0.25,146.51,146.43,22.95390684]
[1642302073689,0.25,146.51,146.44,0.26]
[1642302073890,1.93800651,146.52,146.44,0.26]
[1642302074091,1.93800651,146.52,146.44,68.51]
[1642302074490,1.93800651,146.52,146.44,68.76]
[1642302074690,1.93800651,146.52,146.45,9.84]
[1642302074900,37.67968816,146.54,146.46,1.44950185]
[1642302075190,1.93800651,146.54,146.46,11.28950185]
[1642302075392,1.93800651,146.54,146.46,11.53950185]
[1642302075791,24.7583,146.55,146.46,11.53950185]
[1642302075990,25.0083,146.55,146.46,11.53950185]
[1642302077198,25.0083,146.55,146.47,68.25]
[1642302077392,25.0083,146.55,146.48,0.26]
[1642302077593,25.0083,146.55,146.49,16.82614042]
[1642302077994,25.0083,146.55,146.49,17.07614042]
[1642302080195,24.7583,146.55,146.49,17.07614042]
[1642302080800,24.7583,146.55,146.48,10.1]
[1642302080997,30.7583,146.55,146.48,10.09]
[1642302081198,30.7583,146.55,146.48,9.84]
[1642302081399,30.7583,146.55,146.48,10.09]
[1642302081598,31.0083,146.55,146.48,10.09]
[1642302081798,25.0083,146.55,146.49,21.17418487]
[1642302081998,24.7583,146.55,146.53,0.09890676]
[1642302082198,3.03059901,146.54,146.53,0.09890676]
[1642302082899,25.0083,146.55,146.53,0.09890676]
[1642302083302,31.0083,146.55,146.53,0.09890676]
[1642302083503,3.03059901,146.54,146.53,0.09890676]
[1642302083901,3.28059901,146.54,146.53,0.09890676]
[1642302086506,37.85834675,146.54,146.53,0.09890676]
[1642302087811,0.25,146.54,146.53,0.09890676]
[1642302090213,3.28059901,146.54,146.53,0.09890676]
[1642302093539,39.99891346,146.54,146.53,0.09890676]
[1642302094236,3.28059901,146.54,146.53,0.09890676]
[1642302102443,11.21860552,146.54,146.53,0.09890676]
[1642302104246,10.96860552,146.54,146.53,0.09890676]
[1642302104945,4.96860552,146.54,146.53,0.09890676]
[1642302105847,5.21860552,146.54,146.53,0.09890676]
[1642302107146,4.96860552,146.54,146.53,0.09890676]
[1642302107348,11.21860552,146.54,146.53,0.09890676]
[1642302110750,5.21860552,146.54,146.53,0.09890676]
[1642302110951,4.96860552,146.54,146.53,0.09890676]
[1642302112153,3.03059901,146.54,146.53,0.09890676]
[1642302115556,24.7583,146.55,146.53,4.05947858]
[1642302115754,1.93800651,146.56,146.53,4.05947858]
[1642302115954,0.25,146.55,146.53,4.05947858]
[1642302116655,0.25,146.55,146.53,7.09167855]
[1642302116855,8.18800651,146.56,146.53,7.09167855]
[1642302118358,7.93800651,146.56,146.53,7.09167855]
[1642302118558,7.93800651,146.56,146.53,3.13110673]
[1642302118959,7.43800651,146.56,146.53,3.13110673]
[1642302119563,44.45227448,146.56,146.53,3.13110673]
[1642302119763,43.26426797,146.56,146.53,3.13110673]
[1642302119965,43.01426797,146.56,146.53,3.13110673]
[1642302120168,43.26426797,146.56,146.53,3.13110673]
[1642302120863,3.03059901,146.55,146.53,3.13110673]
[1642302121063,3.03059901,146.55,146.53,0.09890676]
[1642302121263,80.2368,146.54,146.53,0.09890676]
[1642302121467,86.4868,146.54,146.53,0.09890676]
[1642302122066,80.2368,146.54,146.53,0.09890676]
[1642302123364,23.2368,146.54,146.53,3.13110673]
[1642302123565,3.03059901,146.55,146.53,0.09890676]
[1642302123968,9.03059901,146.55,146.53,0.09890676]
[1642302124265,3.03059901,146.55,146.53,0.09890676]
[1642302124465,6.0,146.55,146.53,0.09890676]
[1642302124664,6.0,146.55,146.54,3.03219997]
[1642302126292,6.0,146.55,146.53,0.09890676]
[1642302126594,55.44705909,146.58,146.53,0.09890676]
[1642302126792,0.25,146.55,146.53,0.09890676]
[1642302127992,38.03059901,146.54,146.53,0.09890676]
[1642302128996,62.60639901,146.54,146.53,0.09890676]
[1642302129396,68.60639901,146.54,146.53,0.09890676]
[1642302130995,68.85639901,146.54,146.53,0.09890676]
[1642302131497,9.03059901,146.54,146.53,0.09890676]
[1642302131695,3.03059901,146.54,146.53,0.09890676]
[1642302132095,3.03059901,146.54,146.53,3.13110673]
[1642302132497,0.25,146.54,146.53,3.13110673]
[1642302132897,53.0996465,146.58,146.53,3.13110673]
[1642302133098,53.3496465,146.58,146.53,3.13110673]
[1642302146813,53.0996465,146.58,146.53,3.13110673]
[1642302147812,53.3496465,146.58,146.53,3.13110673]
[1642302149016,53.3496465,146.58,146.53,0.09890676]
[1642302149211,24.7094,146.57,146.53,0.09890676]
[1642302149413,30.9594,146.57,146.53,0.09890676]
[1642302152218,1.70077588,146.56,146.53,0.00890676]
[1642302152419,17.79077588,146.56,146.53,0.00890676]
[1642302152621,28.02559901,146.55,146.53,0.00890676]
[1642302152820,45.81637489,146.55,146.53,0.00890676]
[1642302153018,43.71645924,146.54,146.53,0.00890676]
[1642302153219,45.41723512,146.54,146.53,0.00890676]
[1642302153419,51.66723512,146.54,146.53,0.00890676]
[1642302153621,49.96645924,146.54,146.53,0.00890676]
[1642302154426,49.71645924,146.54,146.53,0.00890676]
[1642302155831,49.96645924,146.54,146.53,0.00890676]
[1642302156433,6.25,146.54,146.53,0.00890676]
[1642302161958,0.25,146.54,146.53,0.00890676]
[1642302163960,0.25,146.54,146.53,0.05853801]
[1642302164561,35.25,146.54,146.53,0.05853801]
[1642302164959,41.25,146.54,146.53,0.05853801]
[1642302165160,35.25,146.54,146.53,0.05853801]
[1642302165761,35.04,146.54,146.53,0.05853801]
[1642302165966,35.0,146.54,146.53,0.05853801]
[1642302166361,41.0,146.54,146.53,0.05853801]
[1642302167364,41.25,146.54,146.53,0.05853801]
[1642302169968,35.25,146.54,146.53,0.05853801]
[1642302171370,41.25,146.54,146.53,0.05853801]
[1642302172576,35.25,146.54,146.53,0.05853801]
[1642302173376,34.75,146.54,146.53,0.05853801]
[1642302173773,40.75,146.54,146.53,0.05853801]
[1642302173975,34.75,146.54,146.53,0.05853801]
[1642302174576,34.5,146.54,146.53,0.05853801]
[1642302175980,34.75,146.54,146.53,0.05853801]
[1642302176477,80.75,146.54,146.53,0.05853801]
[1642302177980,80.25,146.54,146.53,0.05853801]
[1642302179983,80.0,146.54,146.53,0.05853801]
[1642302180784,40.0,146.54,146.53,0.05853801]
[1642302181391,40.25,146.54,146.53,0.05853801]
[1642302182391,90.25,146.54,146.53,0.05853801]
[1642302186316,91.95077588,146.54,146.53,0.05853801]
[1642302188415,90.25,146.54,146.53,0.05853801]
[1642302189415,0.03146199,146.53,146.44,23.2249]
[1642302189816,0.03146199,146.53,146.44,23.4749]
[1642302190016,24.72486199,146.53,146.44,23.2249]
[1642302190217,24.72486199,146.53,146.44,23.4749]
[1642302190417,30.72486199,146.53,146.41,23.92]
[1642302190618,32.42563787,146.53,146.41,48.9875]
[1642302191318,32.67563787,146.53,146.41,48.9875]
[1642302191524,32.67563787,146.53,146.41,25.0675]
[1642302194324,30.97486199,146.53,146.41,25.0675]
[1642302194927,30.97486199,146.53,146.42,68.25]
[1642302195128,6.25,146.53,146.42,80.05077588]
[1642302195328,0.25,146.53,146.44,6.26570165]
[1642302195627,6.25,146.53,146.44,17.80647753]
[1642302195927,6.25,146.53,146.45,0.26]
[1642302196126,0.25,146.53,146.45,68.51]
[1642302196328,6.25,146.53,146.45,91.7445]
[1642302196528,6.25,146.53,146.45,23.4945]
[1642302196930,0.25,146.53,146.45,23.4945]
[1642302197129,44.62595433,146.55,146.45,23.2345]
[1642302198833,44.62595433,146.55,146.46,68.51]
[1642302199235,24.079,146.56,146.46,68.76]
[1642302199433,6.0,146.56,146.46,68.76]
[1642302199635,6.0,146.56,146.46,86.30077588]
[1642302199834,9.88293214,146.58,146.46,86.30077588]
[1642302200130,6.0,146.58,146.47,24.5316]
[1642302200329,43.23005902,146.57,146.48,10.1]
[1642302200530,43.23005902,146.57,146.49,16.90089805]
[1642302200732,6.0,146.57,146.49,16.90089805]
[1642302200930,6.0,146.57,146.49,17.15089805]
[1642302201330,0.25,146.57,146.49,17.15089805]
[1642302201534,0.25,146.59,146.49,40.39889805]
[1642302201734,6.25,146.59,146.49,40.39889805]
[1642302201935,28.907,146.59,146.49,40.39889805]
[1642302202133,29.157,146.59,146.49,40.39889805]
[1642302204135,29.157,146.59,146.49,40.14889805]
[1642302204337,29.157,146.59,146.49,40.39889805]
[1642302206539,29.157,146.59,146.49,40.14889805]
[1642302206740,29.157,146.59,146.49,40.39889805]
[1642302210950,29.157,146.59,146.49,40.14889805]
[1642302211150,29.157,146.59,146.49,40.39889805]
[1642302213470,29.157,146.59,146.49,40.14889805]
[1642302213870,29.157,146.59,146.49,40.39889805]
[1642302214373,29.157,146.59,146.49,23.248]
[1642302214571,29.157,146.59,146.46,6.0]
[1642302214771,29.157,146.59,146.46,28.6965]
[1642302214973,29.157,146.59,146.46,22.9465]
[1642302215477,29.157,146.59,146.47,21.45608209]
[1642302216171,29.157,146.59,146.47,21.70608209]
[1642302216373,29.157,146.59,146.47,28.98108209]
[1642302216571,29.157,146.59,146.48,22.8791]
[1642302216974,29.157,146.59,146.48,23.1291]
[1642302217374,23.157,146.59,146.48,23.1291]
[1642302218776,29.157,146.59,146.48,23.1291]
[1642302219179,29.157,146.59,146.48,29.1291]
[1642302219778,29.157,146.59,146.48,23.1291]
[1642302221278,29.157,146.59,146.48,29.1291]
[1642302221679,29.157,146.59,146.48,23.1291]
[1642302223883,29.157,146.59,146.48,29.1291]
[1642302224183,29.157,146.59,146.48,23.1291]
[1642302225483,29.157,146.59,146.48,29.1291]
[1642302225684,29.157,146.59,146.48,23.1291]
[1642302225886,29.157,146.59,146.48,29.1291]
[1642302226285,29.157,146.59,146.48,23.1291]
[1642302226884,29.157,146.59,146.48,29.1291]
[1642302227084,29.157,146.59,146.48,23.1291]
[1642302227886,29.157,146.59,146.48,29.1291]
[1642302228290,29.157,146.59,146.48,23.1291]
[1642302228489,29.157,146.59,146.49,0.26]
[1642302229787,23.157,146.59,146.49,0.26]
[1642302236803,23.157,146.59,146.48,29.1291]
[1642302237003,23.157,146.59,146.48,38.7191]
[1642302237202,29.157,146.59,146.48,38.7191]
[1642302237402,29.157,146.59,146.48,32.7191]
[1642302238033,33.03993214,146.59,146.48,32.7191]
[1642302238433,32.78993214,146.59,146.48,32.7191]
[1642302238834,32.78993214,146.59,146.48,32.9691]
[1642302239033,3.87607398,146.58,146.48,32.9691]
[1642302239434,24.3264,146.57,146.48,32.9691]
[1642302239833,30.3264,146.57,146.48,32.9691]
[1642302240234,1.94183983,146.56,146.48,32.9691]
[1642302240436,36.86239788,146.55,146.48,32.9691]
[1642302240634,36.86239788,146.55,146.48,32.7191]
[1642302240935,37.11239788,146.55,146.48,22.8791]
[1642302241133,43.11239788,146.55,146.48,22.8791]
[1642302241337,43.11239788,146.55,146.46,1.94532069]
[1642302241535,22.5561,146.54,146.46,25.94732069]
[1642302241936,22.8061,146.54,146.46,24.002]
[1642302242136,22.8061,146.54,146.47,19.30732696]
[1642302242935,28.8061,146.54,146.47,19.30732696]
[1642302244938,22.8061,146.54,146.47,19.30732696]
[1642302245139,22.8061,146.54,146.47,19.55732696]
[1642302245540,22.8061,146.54,146.47,19.30732696]
[1642302246039,68.18344589,146.54,146.47,19.30732696]
[1642302246443,22.5561,146.54,146.47,19.55732696]
[1642302246642,1.94183983,146.55,146.47,19.55732696]
[1642302246841,1.94183983,146.56,146.48,23.818]
[1642302247243,1.94183983,146.56,146.48,24.068]
[1642302247644,1.94183983,146.57,146.48,24.068]
[1642302247842,2.19183983,146.57,146.48,24.068]
[1642302248445,1.94183983,146.56,146.48,24.068]
[1642302248845,2.19183983,146.56,146.48,23.818]
[1642302249244,8.19183983,146.56,146.48,23.818]
[1642302249446,2.19183983,146.56,146.48,23.818]
[1642302250445,2.19183983,146.56,146.48,24.068]
[1642302250846,2.19183983,146.56,146.45,1.94532069]
[1642302251047,18.03183983,146.56,146.45,1.94532069]
[1642302251247,19.73261571,146.56,146.45,7.94532069]
[1642302251449,19.73261571,146.56,146.45,1.94532069]
[1642302251649,23.8376,146.55,146.45,1.94532069]
[1642302251849,30.0876,146.55,146.45,1.94532069]
[1642302252052,11.54077588,146.54,146.45,1.94532069]
[1642302252249,18.14477588,146.54,146.45,2.069e-05]
[1642302252450,25.42947588,146.53,146.45,2.069e-05]
[1642302252652,25.42947588,146.53,146.39,3.82392887]
[1642302252653,9.84,146.52,146.39,3.82392887]
[1642302252864,17.79077588,146.52,146.39,3.82392887]
[1642302253053,47.3816389,146.51,146.39,3.82392887]
[1642302253253,67.4656389,146.51,146.39,3.82392887]
[1642302253453,24.29077588,146.5,146.39,3.82392887]
[1642302253656,34.13077588,146.5,146.39,3.82392887]
[1642302253859,34.13077588,146.5,146.38,17.80025476]
[1642302253860,1.70077588,146.49,146.38,17.80025476]
[1642302254057,1.70077588,146.49,146.38,18.05025476]
[1642302254261,7.95077588,146.49,146.38,18.05025476]
[1642302254657,25.49607588,146.48,146.38,18.05025476]
[1642302254858,25.74607588,146.48,146.38,17.80025476]
[1642302255057,31.74607588,146.48,146.38,17.80025476]
[1642302257891,30.0453,146.48,146.38,17.80025476]
[1642302260995,30.0453,146.48,146.38,23.80025476]
[1642302261592,30.0453,146.48,146.38,17.80025476]
[1642302261996,29.7953,146.48,146.38,17.80025476]
[1642302262195,29.7953,146.48,146.38,18.05025476]
[1642302262393,6.0,146.48,146.38,18.05025476]
[1642302262594,6.0,146.48,146.39,24.9154]
[1642302262796,39.0309,146.5,146.39,24.9154]
[1642302263398,40.73167588,146.5,146.39,24.9154]
[1642302263796,40.98167588,146.5,146.39,24.9154]
[1642302263997,40.98167588,146.5,146.34,9.84]
[1642302264201,40.98167588,146.5,146.35,24.3623]
[1642302264397,40.98167588,146.5,146.35,30.6123]
[1642302264997,40.98167588,146.5,146.36,23.09567379]
[1642302265398,40.98167588,146.5,146.37,24.2428]
[1642302265900,40.98167588,146.5,146.37,24.4928]
[1642302268907,40.98167588,146.5,146.37,0.25]
[1642302269109,58.27993679,146.5,146.33,24.9926]
[1642302269311,68.25,146.49,146.33,6.0]
[1642302269513,9.84,146.48,146.33,6.0]
[1642302269713,23.6316,146.47,146.3,33.10182887]
[1642302269910,9.84,146.46,146.3,29.2779]
[1642302270111,58.72239057,146.46,146.31,22.68605185]
[1642302270315,1.70077588,146.45,146.31,22.93605185]
[1642302270512,46.28577588,146.45,146.31,22.93605185]
[1642302270713,52.53577588,146.45,146.31,22.93605185]
[1642302270913,1.70077588,146.44,146.31,22.93605185]
[1642302271413,7.95077588,146.44,146.31,22.93605185]
[1642302271815,24.90717588,146.43,146.32,22.9224]
[1642302272216,31.15717588,146.43,146.32,23.1724]
[1642302274820,25.15717588,146.43,146.32,23.1724]
[1642302275219,23.4564,146.43,146.32,23.1724]
[1642302275818,23.4564,146.43,146.32,29.1724]
[1642302276020,25.15717588,146.43,146.32,29.1724]
[1642302276218,31.15717588,146.43,146.32,29.1724]
[1642302276418,29.4564,146.43,146.32,29.1724]
[1642302276618,31.15717588,146.43,146.32,29.1724]
[1642302277721,31.15717588,146.43,146.32,28.9224]
[1642302278322,29.4564,146.43,146.32,28.9224]
[1642302278525,31.15717588,146.43,146.32,28.9224]
[1642302278727,31.15717588,146.43,146.32,22.9224]
[1642302278925,29.4564,146.43,146.32,22.9224]
[1642302279125,29.4564,146.43,146.32,23.1724]
[1642302279927,29.4564,146.43,146.33,0.26]
[1642302280130,0.25,146.43,146.33,0.26]
[1642302280325,55.13239057,146.46,146.33,0.26]
[1642302280525,77.92889057,146.46,146.34,9.84]
[1642302280728,3.88293214,146.5,146.35,24.1354]
[1642302280927,5.58370802,146.52,146.36,101.928219]
[1642302281124,3.88293214,146.52,146.36,202.76077588]
[1642302281328,3.88293214,146.52,146.37,0.26]
[1642302281526,3.88293214,146.52,146.38,9.84]
[1642302281726,49.67981258,146.52,146.39,1.20735684]
[1642302282026,49.67981258,146.52,146.4,9.84]
[1642302282227,49.92981258,146.52,146.4,9.84]
[1642302282426,46.04688044,146.52,146.4,16.09]
[1642302283252,52.04688044,146.52,146.4,16.09]
[1642302283452,24.1276,146.51,146.4,16.09]
[1642302283852,30.3776,146.51,146.4,16.09]
[1642302284151,6.25,146.51,146.4,84.34]
[1642302284356,0.25,146.51,146.41,0.26]
[1642302284552,0.25,146.51,146.42,9.84]
[1642302284952,44.01163617,146.55,146.42,16.09]
[1642302285353,44.26163617,146.55,146.42,16.09]
[1642302286956,44.26163617,146.55,146.43,0.26]
[1642302287863,44.26163617,146.55,146.43,68.51]
[1642302288056,44.26163617,146.55,146.44,20.94536225]
[1642302288257,0.25,146.55,146.44,20.94536225]
[1642302288457,24.6922,146.56,146.44,21.19536225]
[1642302288659,34.5322,146.56,146.44,21.19536225]
[1642302289258,47.75871945,146.55,146.44,21.19536225]
[1642302289460,48.00871945,146.55,146.44,21.19536225]
[1642302289960,23.1745,146.54,146.44,21.19536225]
[1642302290358,23.4245,146.54,146.44,21.19536225]
[1642302290759,23.4245,146.54,146.44,0.25]
[1642302290960,33.2645,146.54,146.42,6.0]
[1642302291159,39.2645,146.54,146.39,33.949]
[1642302291360,39.2645,146.54,146.39,39.949]
[1642302291660,39.2645,146.54,146.4,18.60975878]
[1642302295465,39.2645,146.54,146.4,18.85975878]
[1642302296564,39.2645,146.54,146.4,24.85975878]
[1642302296768,39.2645,146.54,146.4,34.69975878]
[1642302300374,39.2645,146.54,146.41,0.26]
[1642302300572,33.2645,146.54,146.42,9.84]
[1642302300770,47.75871945,146.55,146.43,68.51]